{"text_format":"1","workbook":"xlsx","n_sheets":3,"sheets":["base de donnée des médicaments","base de données des patients","Feuil3"],"not_rendered":{"charts":0,"images":0,"macros":1,"external_links":0,"defined_names":0,"comments":0,"pivot_tables":0},"unopened":[],"bounds":{"document_bytes":16777216,"sheet_cells":100000,"rows_first":2000,"rows_last":500,"rows_between":2000,"halvings":0,"cell_chars":16384,"cell_head_chars":4096},"cells_cut":0,"cells_raw":0,"read":"whole","date_system":"1900"}

{"sheet":"base de donnée des médicaments","index":0,"n_rows":6,"n_cols":6,"rows_kept":6,"cut":false,"hidden":false,"merged":[]}
[null,"antidiabétique","antihypertenseur","SARTAN","biguanide","Statine"]
["Kenzen",0,1,1,0,0]
["crestor",0,0,0,0,1]
["tahor",0,0,0,0,1]
["glucophage",1,0,0,1,0]
["metformine",1,0,0,1,0]

{"sheet":"base de données des patients","index":1,"n_rows":8,"n_cols":10,"rows_kept":8,"cut":false,"hidden":false,"merged":[]}
["NOM","PRENOM","AGE","Traitement",null,"antidiabétique","antihypertenseur","SARTAN","biguanide","Statine"]
["durand","jean",43,"kenzen doliprane tahor",null,{"$f":"Types_méd($D2,F$1)","v":0},{"$f":"Types_méd($D2,G$1)","v":1},{"$f":"Types_méd($D2,H$1)","v":1},0,{"$f":"Types_méd($D2,J$1)","v":1}]
["mostar","oudda",54,"tahor glucophage aspirine",null,{"$f":"Types_méd($D3,F$1)","v":1},0,0,1,1]
["calinote","bernard",34,"kenzen lexomil ",null,0,1,1,0,0]
["martin","julien",76,"Kenzen crestor deroxat",null,0,1,1,0,1]
["breton","rolland",45,"insuline metformine",null,1,0,0,1,0]
[null,null,null,null,null,0,0,0,0,0]
[null,null,null,null,null,0,0,0,0,0]

{"sheet":"Feuil3","index":2,"n_rows":0,"n_cols":0,"rows_kept":0,"cut":false,"hidden":false,"merged":[]}